bitfinex/quotes_BTCUSD_20241018
["timestamp","ask_amount","ask_price","bid_price","bid_amount"]
[1729229131008,0.26709921,67825.0,67824.0,0.1886768]
[1729229131228,0.1788226,67825.0,67824.0,0.1886768]
[1729229131659,0.26709921,67825.0,67824.0,0.1886768]
[1729229133548,0.26709921,67825.0,67824.0,0.0412368]
[1729229133779,0.26709921,67825.0,67824.0,0.1886768]
[1729229134773,0.26709921,67825.0,67824.0,0.1903328]
[1729229134996,0.26792721,67825.0,67824.0,0.1903328]
[1729229136167,0.3270886,67825.0,67824.0,0.0428928]
[1729229136615,0.43743437,67825.0,67824.0,0.027656]
[1729229136811,0.42364297,67825.0,67824.0,0.027656]
[1729229137030,0.43743968,67825.0,67824.0,0.027656]
[1729229137258,0.17965638,67825.0,67824.0,0.027656]
[1729229137471,0.29000215,67825.0,67824.0,0.027656]
[1729229137712,0.17965638,67825.0,67824.0,0.04313987]
[1729229139343,0.33209438,67825.0,67824.0,0.04313987]
[1729229139796,0.33209438,67825.0,67824.0,0.027656]
[1729229140270,0.33109438,67825.0,67824.0,0.015656]
[1729229140491,0.33409438,67825.0,67824.0,0.001656]
[1729229141008,0.35617439,67825.0,67824.0,0.001656]
[1729229141252,0.35717439,67825.0,67824.0,0.001656]
[1729229141730,0.35716073,67825.0,67824.0,0.001656]
[1729229142717,0.46749474,67825.0,67824.0,0.001656]
[1729229142917,0.35716073,67825.0,67824.0,0.001656]
[1729229143085,0.46749405,67825.0,67824.0,0.001656]
[1729229143739,0.35716073,67825.0,67824.0,0.001656]
[1729229144506,0.46748611,67825.0,67824.0,0.001656]
[1729229144734,0.55815249,67825.0,67824.0,0.001656]
[1729229145009,0.62617248,67825.0,67824.0,0.001656]
[1729229145235,0.62617248,67825.0,67823.0,0.00114863]
[1729229145236,0.01609086,67824.0,67823.0,0.00114863]
[1729229145449,0.45881494,67824.0,67823.0,0.00114863]
[1729229145665,0.62851494,67824.0,67823.0,0.00114863]
[1729229146103,0.63051137,67824.0,67823.0,0.00114863]
[1729229146342,0.49615754,67824.0,67823.0,0.00114863]
[1729229146548,0.49606513,67824.0,67823.0,0.00114863]
[1729229146761,0.63164085,67824.0,67823.0,0.00114863]
[1729229146977,0.76397594,67824.0,67823.0,0.00114863]
[1729229147184,0.63364085,67824.0,67823.0,0.00114863]
[1729229147415,0.63039377,67824.0,67823.0,0.00114863]
[1729229147630,0.63439377,67824.0,67823.0,0.00214863]
[1729229148046,0.50706506,67824.0,67823.0,0.00214863]
[1729229148280,0.63939377,67824.0,67823.0,0.00214863]
[1729229148512,0.50206506,67824.0,67823.0,0.00214863]
[1729229149009,0.51206506,67824.0,67823.0,0.00314863]
[1729229149238,0.64235848,67824.0,67823.0,0.00314863]
[1729229149452,0.50006506,67824.0,67823.0,0.00214863]
[1729229149670,0.50706506,67824.0,67823.0,0.00214863]
[1729229150158,0.51106506,67824.0,67823.0,0.00314863]
[1729229151492,0.51099625,67824.0,67823.0,0.00314863]
[1729229153980,0.53281007,67824.0,67823.0,0.00314863]
[1729229156010,0.55486462,67824.0,67823.0,0.00314863]
[1729229156494,0.53305049,67824.0,67823.0,0.00314863]
[1729229159650,0.66532967,67824.0,67823.0,0.00314863]
[1729229159872,0.53305049,67824.0,67823.0,0.00314863]
[1729229160777,0.00109086,67814.0,67813.0,0.01538981]
[1729229161005,0.04519741,67814.0,67813.0,0.01538981]
[1729229161236,0.04519741,67814.0,67813.0,0.03092732]
[1729229161455,0.04519741,67814.0,67813.0,0.01538981]
[1729229161678,0.00109086,67814.0,67813.0,0.03092732]
[1729229161893,0.04519705,67814.0,67813.0,0.03092732]
[1729229162115,0.04719705,67814.0,67813.0,0.03092732]
[1729229162333,0.04719705,67814.0,67813.0,0.01538981]
[1729229163887,0.04719705,67814.0,67813.0,0.03092732]
[1729229164380,0.04719705,67814.0,67813.0,0.17839132]
[1729229164602,0.04719753,67814.0,67813.0,0.25929132]
[1729229164822,0.00309086,67814.0,67813.0,0.25929132]
[1729229169281,0.00309086,67814.0,67813.0,0.26094732]
[1729229171295,0.04720512,67814.0,67813.0,0.26094732]
[1729229174177,0.04721182,67814.0,67813.0,0.26094732]
[1729229177224,0.00309086,67814.0,67813.0,0.26094732]
[1729229180277,0.06927231,67814.0,67813.0,0.26094732]
[1729229180982,0.00309086,67814.0,67813.0,0.26094732]
[1729229181432,0.04724228,67814.0,67813.0,0.26094732]
[1729229181652,0.00309086,67814.0,67813.0,0.26094732]
[1729229182079,0.04724193,67814.0,67813.0,0.26094732]
[1729229182289,0.00309086,67814.0,67813.0,0.26094732]
[1729229184106,0.06927231,67814.0,67813.0,0.26094732]
[1729229184340,0.00309086,67814.0,67813.0,0.26094732]
[1729229185235,0.06927231,67814.0,67813.0,0.26094732]
[1729229185693,0.06927231,67814.0,67813.0,0.37603908]
[1729229185912,0.06927231,67814.0,67813.0,0.61839823]
[1729229185913,0.00309086,67814.0,67813.0,0.61839823]
[1729229186582,0.00109086,67814.0,67813.0,0.61839823]
[1729229187015,0.00209086,67814.0,67813.0,0.62639823]
[1729229187442,0.00109086,67814.0,67813.0,0.61839823]
[1729229187854,0.00209086,67814.0,67813.0,0.64039823]
[1729229188321,0.00109086,67814.0,67813.0,0.63239823]
[1729229189168,0.00109086,67814.0,67813.0,0.61839823]
[1729229189617,0.00209086,67814.0,67813.0,0.63939823]
[1729229190739,0.001,67814.0,67813.0,0.63939823]
[1729229190982,0.001,67814.0,67813.0,0.77748999]
[1729229191196,0.001,67814.0,67813.0,0.66239823]
[1729229191420,0.001,67814.0,67813.0,0.77748999]
[1729229191644,0.001,67814.0,67813.0,0.66239823]
[1729229192330,0.001,67814.0,67813.0,0.64939823]
[1729229192527,0.00109086,67818.0,67813.0,0.49393423]
[1729229192752,0.01213489,67820.0,67818.0,0.224053]
[1729229192984,0.00109086,67820.0,67819.0,0.51080191]
[1729229193213,0.01213514,67820.0,67819.0,0.52631203]
[1729229193429,0.01104428,67820.0,67819.0,0.52631203]
[1729229193651,0.01213514,67820.0,67819.0,0.52631203]
[1729229193863,0.01104428,67820.0,67819.0,0.52631203]
[1729229194085,0.01313514,67820.0,67819.0,0.54831203]
[1729229194773,0.01313514,67820.0,67819.0,0.57131203]
[1729229195452,0.00209086,67820.0,67819.0,0.57131203]
[1729229195698,0.01313643,67820.0,67819.0,0.57131203]
[1729229197191,0.00209086,67820.0,67819.0,0.57131203]
[1729229203221,0.00209086,67820.0,67819.0,0.54831203]
[1729229203439,0.00209086,67820.0,67819.0,0.43322027]
[1729229203690,0.00209086,67820.0,67819.0,0.03751012]
[1729229204373,0.01313333,67820.0,67819.0,0.03751012]
[1729229204615,0.05731235,67820.0,67819.0,0.03751012]
[1729229204826,0.01313333,67820.0,67819.0,0.03751012]
[1729229205039,0.01313333,67820.0,67819.0,0.30005288]
[1729229205474,0.01204247,67820.0,67819.0,0.30005288]
[1729229205891,0.02693701,67820.0,67819.0,0.30005288]
[1729229206103,0.01313333,67820.0,67819.0,0.30005288]
[1729229206318,0.01313333,67820.0,67819.0,0.53971203]
[1729229208465,0.01313333,67820.0,67819.0,0.42462027]
[1729229208916,0.01313333,67820.0,67819.0,0.53971203]
[1729229211601,0.02694441,67820.0,67819.0,0.53971203]
[1729229217287,0.07111266,67820.0,67819.0,0.53971203]
[1729229218349,0.06007019,67820.0,67819.0,0.53971203]
[1729229218588,0.07112682,67820.0,67819.0,0.53971203]
[1729229219491,0.02695857,67820.0,67819.0,0.53971203]
[1729229219698,0.02695857,67820.0,67819.0,0.54136803]
[1729229221247,0.01590194,67820.0,67819.0,0.54136803]
[1729229221479,0.02696028,67820.0,67819.0,0.54136803]
[1729229222193,0.07112853,67820.0,67819.0,0.54136803]
[1729229222837,0.07114078,67820.0,67819.0,0.54136803]
[1729229224400,0.02697253,67820.0,67819.0,0.54136803]
[1729229225986,0.09326843,67820.0,67819.0,0.54136803]
[1729229226449,0.02697253,67820.0,67819.0,0.54136803]
[1729229227562,0.09326843,67820.0,67819.0,0.54136803]
[1729229227774,0.02697253,67820.0,67819.0,0.54136803]
[1729229228230,0.09326843,67820.0,67819.0,0.54136803]
[1729229229316,0.09326821,67820.0,67819.0,0.54136803]
[1729229229741,0.09326688,67820.0,67819.0,0.54136803]
[1729229231319,0.02697098,67820.0,67819.0,0.54136803]
[1729229232238,0.2785793,67820.0,67819.0,0.54136803]
[1729229232462,0.19018476,67820.0,67819.0,0.54136803]
[1729229232903,0.09220799,67820.0,67819.0,0.54136803]
[1729229233150,0.09329885,67820.0,67819.0,0.62116803]
[1729229233381,0.02588012,67820.0,67819.0,0.64416803]
[1729229233601,0.01205783,67820.0,67819.0,0.6902679]
[1729229233822,0.001,67820.0,67819.0,0.6902679]
[1729229234284,0.001,67820.0,67819.0,0.9092688]
[1729229234537,0.000828,67823.0,67819.0,0.9092688]
[1729229234538,0.000828,67823.0,67822.0,0.346044]
[1729229234767,0.000828,67823.0,67822.0,0.78677961]
[1729229234983,0.000828,67823.0,67822.0,0.55659609]
[1729229235202,0.000828,67823.0,67822.0,0.62558798]
[1729229236295,0.001828,67823.0,67822.0,0.63958798]
[1729229236508,0.001828,67823.0,67822.0,0.65358798]
[1729229236723,0.001828,67823.0,67822.0,0.63958798]
[1729229237195,0.001828,67823.0,67822.0,0.65358798]
[1729229237447,0.000828,67823.0,67822.0,0.63958798]
[1729229237864,0.000828,67823.0,67822.0,0.65358798]
[1729229238515,0.000828,67823.0,67822.0,0.63958798]
[1729229238900,0.000828,67823.0,67822.0,0.65358798]
[1729229239111,0.000828,67823.0,67822.0,0.63958798]
[1729229239757,0.000828,67823.0,67822.0,0.62558798]
[1729229239970,0.000828,67823.0,67822.0,0.63958798]
[1729229240396,0.000828,67823.0,67822.0,0.62558798]
[1729229240616,0.000828,67823.0,67822.0,0.63958798]
[1729229241086,0.000828,67823.0,67822.0,0.62558798]
[1729229241585,0.000828,67823.0,67822.0,0.44098798]
[1729229241586,0.00191886,67823.0,67822.0,0.44098798]
[1729229241810,0.00191886,67823.0,67822.0,0.33989622]
[1729229242501,0.00191886,67823.0,67822.0,0.19093707]
[1729229242948,0.00191886,67823.0,67822.0,0.17693707]
[1729229243313,0.00191886,67823.0,67822.0,0.18993707]
[1729229243522,0.00191886,67823.0,67822.0,0.17593707]
[1729229243942,0.00191886,67823.0,67822.0,0.18993707]
[1729229244354,0.00191886,67823.0,67822.0,0.17593707]
[1729229244790,0.00191886,67823.0,67822.0,0.18493707]
[1729229246086,0.04607568,67823.0,67822.0,0.03749307]
[1729229246296,0.07090135,67823.0,67822.0,0.18493707]
[1729229246515,0.02674453,67823.0,67822.0,0.18493707]
[1729229247215,0.0157109,67823.0,67822.0,0.18493707]
[1729229247856,0.08192347,67823.0,67822.0,0.18493707]
[1729229248814,0.08192274,67823.0,67822.0,0.18493707]
[1729229249773,0.08192002,67823.0,67822.0,0.18493707]
[1729229250022,0.08192002,67823.0,67822.0,0.03749307]
[1729229250264,0.01571017,67823.0,67822.0,0.03749307]
[1729229250723,0.01571017,67823.0,67822.0,0.18493707]
[1729229251181,0.02673917,67823.0,67822.0,0.18493707]
[1729229252096,0.09292369,67823.0,67822.0,0.18493707]
[1729229252575,0.09291681,67823.0,67822.0,0.18493707]
[1729229253015,0.09291684,67823.0,67822.0,0.18493707]
[1729229253240,0.10394506,67823.0,67822.0,0.18493707]
[1729229253481,0.09291687,67823.0,67822.0,0.18493707]
[1729229253979,0.08188865,67823.0,67822.0,0.18493707]
[1729229254197,0.09291664,67823.0,67822.0,0.18493707]
[1729229255259,0.02673212,67823.0,67822.0,0.18493707]
[1729229255905,0.07085401,67823.0,67822.0,0.18493707]
[1729229256380,0.04604075,67823.0,67822.0,0.18493707]
[1729229256610,0.07085341,67823.0,67822.0,0.18493707]
[1729229257530,0.02673152,67823.0,67822.0,0.18493707]
[1729229260729,0.07085148,67823.0,67822.0,0.18493707]
[1729229264566,0.04603931,67823.0,67822.0,0.18493707]
[1729229264806,0.07085092,67823.0,67822.0,0.18493707]
[1729229266830,0.07085092,67823.0,67822.0,0.18659307]
[1729229267047,0.07085195,67823.0,67822.0,0.18659307]
[1729229268135,0.04604034,67823.0,67822.0,0.18659307]
[1729229268355,0.07086362,67823.0,67822.0,0.18659307]
[1729229268858,0.07086405,67823.0,67822.0,0.18659307]
[1729229270412,0.02674214,67823.0,67822.0,0.18659307]
[1729229270633,0.02674214,67823.0,67822.0,0.36299307]
[1729229270634,0.01186057,67823.0,67822.0,0.36299307]
[1729229270857,0.01186057,67823.0,67822.0,0.51195222]
[1729229271074,0.000828,67823.0,67822.0,0.51195222]
[1729229282243,0.00191886,67823.0,67822.0,0.51195222]
[1729229292330,0.000828,67823.0,67822.0,0.51195222]
[1729229295721,0.000828,67823.0,67822.0,0.53495222]
[1729229298707,0.00191886,67823.0,67822.0,0.51195222]
[1729229298922,0.00191886,67823.0,67822.0,0.62704398]
[1729229299360,0.01296917,67823.0,67822.0,0.62704398]
[1729229300287,0.02678656,67823.0,67822.0,0.62704398]
[1729229301633,0.000828,67824.0,67823.0,0.15335114]
[1729229301871,0.22231279,67842.0,67832.0,0.147423]
[1729229302145,0.22231279,67842.0,67832.0,0.53909381]
[1729229302360,0.22231279,67842.0,67832.0,0.55200582]
[1729229302590,0.22231279,67842.0,67832.0,0.78218934]
[1729229302821,0.22231279,67842.0,67832.0,0.66709758]
[1729229303360,0.22231279,67842.0,67832.0,0.68109758]
[1729229303586,0.00191886,67844.0,67832.0,0.68109758]
[1729229303587,0.00191886,67844.0,67832.0,0.62103367]
[1729229304028,0.00191886,67844.0,67832.0,0.63503367]
[1729229304743,0.00191886,67844.0,67832.0,0.64903367]
[1729229305847,0.00191886,67844.0,67832.0,0.63503367]
[1729229306069,0.00191886,67844.0,67832.0,0.64903367]
[1729229308225,0.00191886,67844.0,67832.0,0.65103367]
[1729229308425,0.00191886,67844.0,67832.0,0.64903367]
[1729229310059,0.00191886,67844.0,67832.0,0.74903367]
[1729229311194,0.000828,67844.0,67832.0,0.75294281]
[1729229311425,0.000828,67844.0,67840.0,0.023]
[1729229311645,0.000828,67844.0,67843.0,0.54954167]
[1729229311868,0.000828,67844.0,67843.0,0.71924167]
[1729229312093,0.000828,67844.0,67843.0,0.73504366]
[1729229313542,0.000828,67844.0,67843.0,0.74904366]
[1729229313744,0.000828,67844.0,67843.0,0.73504366]
[1729229314146,0.000828,67844.0,67843.0,0.74904366]
[1729229314343,0.000828,67844.0,67843.0,0.76304366]
[1729229316015,0.000828,67844.0,67843.0,0.77452416]
[1729229320759,0.000828,67844.0,67843.0,0.8784333]
[1729229321223,0.000828,67844.0,67843.0,0.8804333]
[1729229322170,0.000828,67844.0,67843.0,0.8784333]
[1729229336751,0.000828,67844.0,67843.0,0.7998333]
[1729229337714,0.000828,67844.0,67843.0,0.78444366]
[1729229338183,0.000828,67844.0,67843.0,0.83045091]
[1729229340026,0.000828,67844.0,67843.0,0.84184455]
[1729229342106,0.000828,67844.0,67843.0,0.97084545]
[1729229342346,0.000828,67849.0,67848.0,0.17629714]
[1729229342568,0.000828,67849.0,67848.0,0.88499427]
[1729229343015,0.000828,67849.0,67848.0,0.88699427]
[1729229343672,0.000828,67849.0,67848.0,0.91499427]
[1729229345986,0.000828,67849.0,67848.0,0.91299427]
[1729229346412,0.000828,67849.0,67848.0,0.79790251]
[1729229346641,0.000828,67849.0,67848.0,0.91299427]
[1729229346874,0.21979679,67860.0,67849.0,0.123]
[1729229347097,0.21979679,67860.0,67859.0,0.28545576]
[1729229347335,0.00109086,67861.0,67860.0,0.147362]
[1729229347573,0.00109086,67861.0,67860.0,0.31201768]
[1729229349321,0.00109086,67862.0,67861.0,0.14736]
[1729229349592,0.01490078,67862.0,67861.0,0.42709813]
[1729229350061,0.00109086,67862.0,67861.0,0.42709813]
[1729229350708,0.00309086,67862.0,67861.0,0.42809813]
[1729229350946,0.01689968,67862.0,67861.0,0.42809813]
[1729229351155,0.002,67862.0,67861.0,0.42809813]
[1729229351629,0.003,67862.0,67861.0,0.42909813]
[1729229351849,0.00409086,67862.0,67861.0,0.42909813]
[1729229352078,0.00109086,67862.0,67861.0,0.42709813]
[1729229352314,0.00409086,67862.0,67861.0,0.42709813]
[1729229354158,0.003,67862.0,67861.0,1.06700268]
[1729229354387,0.08830428,67871.0,67861.0,1.06700268]
[1729229354388,0.00109086,67879.0,67878.0,0.147323]
[1729229354689,0.00109086,67879.0,67878.0,0.42700052]
[1729229355557,0.00309086,67879.0,67878.0,0.42800052]
[1729229356014,0.00309086,67879.0,67878.0,0.42900052]
[1729229356233,0.00409086,67879.0,67878.0,0.42900052]
[1729229362920,0.00409086,67879.0,67878.0,0.31390876]
[1729229363143,0.00491786,67879.0,67878.0,0.31390876]
[1729229364520,0.00491786,67879.0,67878.0,0.16658576]
[1729229364769,0.08151786,67879.0,67878.0,0.16658576]
[1729229365706,0.08151786,67879.0,67878.0,0.01762661]
[1729229365707,0.10028388,67879.0,67878.0,0.01762661]
[1729229365926,0.10028388,67879.0,67878.0,0.002]
[1729229366612,0.24760388,67879.0,67878.0,0.002]
[1729229366834,0.19818388,67879.0,67878.0,0.002]
[1729229367505,0.34550388,67879.0,67878.0,0.002]
[1729229367733,0.19818388,67879.0,67878.0,0.002]
[1729229367929,0.26427508,67879.0,67878.0,0.002]
[1729229368192,0.41159508,67879.0,67878.0,0.002]
[1729229368424,0.43362582,67879.0,67878.0,0.002]
[1729229368672,0.530143,67879.0,67878.0,0.002]
[1729229369199,0.530143,67879.0,67878.0,0.001]
[1729229369200,0.529143,67879.0,67878.0,0.001]
[1729229369424,0.28529096,67879.0,67878.0,0.001]
[1729229369642,0.43061096,67879.0,67878.0,0.001]
[1729229369875,0.43061096,67879.0,67869.0,0.147341]
[1729229369876,0.00109086,67870.0,67869.0,0.147341]
[1729229370098,0.07649086,67870.0,67869.0,0.147341]
[1729229370338,0.07649086,67870.0,67869.0,0.16296583]
[1729229371468,0.00109086,67870.0,67869.0,0.16296583]
[1729229371919,0.00109086,67870.0,67869.0,0.16496583]
[1729229371920,0.01409086,67870.0,67869.0,0.16496583]
[1729229372144,0.00909086,67870.0,67869.0,0.16396583]
[1729229372371,0.00109086,67870.0,67869.0,0.16296583]
[1729229372603,0.00209086,67870.0,67869.0,0.16296583]
[1729229372832,0.00609086,67870.0,67869.0,0.16296583]
[1729229375333,0.00691786,67870.0,67869.0,0.16296583]
[1729229378338,0.00691786,67870.0,67869.0,0.01562483]
[1729229378558,0.10031786,67870.0,67869.0,0.01562483]
[1729229378796,0.11409752,67870.0,67869.0,0.147342]
[1729229379003,0.11409752,67870.0,67869.0,0.16297393]
[1729229379219,0.11409752,67870.0,67869.0,0.01563193]
[1729229379452,0.11409752,67870.0,67869.0,0.16297393]
[1729229379668,0.11409752,67870.0,67869.0,0.147342]
[1729229379881,0.11409752,67870.0,67869.0,0.16297393]
[1729229382517,0.11409944,67870.0,67869.0,0.16297393]
[1729229390093,0.10031786,67870.0,67869.0,0.16297393]
[1729229390335,0.11411036,67870.0,67869.0,0.16297393]
[1729229390560,0.11411269,67870.0,67869.0,0.16297393]
[1729229391067,0.33260812,67870.0,67869.0,0.01563193]
[1729229391289,0.14118442,67870.0,67869.0,0.01563193]
[1729229391505,0.14118442,67870.0,67861.0,0.51703079]
[1729229391506,0.00109086,67865.0,67864.0,0.149007]
[1729229391723,0.01488569,67865.0,67864.0,0.149007]
[1729229392154,0.01488694,67865.0,67864.0,0.149007]
[1729229392612,0.24243794,67865.0,67864.0,0.001654]
[1729229392839,0.42797359,67865.0,67864.0,0.001654]
[1729229393064,0.73791228,67865.0,67864.0,0.001654]
[1729229393313,0.49752134,67865.0,67864.0,0.001654]
[1729229393532,0.47645459,67865.0,67864.0,0.015654]
[1729229393749,0.47545459,67865.0,67864.0,0.001654]
[1729229393966,0.62280481,67865.0,67864.0,0.001654]
[1729229394201,0.5346125,67865.0,67864.0,0.02203635]
[1729229394425,0.5436125,67865.0,67864.0,0.012654]
[1729229394887,0.5426125,67865.0,67864.0,0.002654]
[1729229395318,0.5536125,67865.0,67864.0,0.003654]
[1729229395553,0.64178134,67865.0,67864.0,0.003654]
[1729229395773,0.64170775,67865.0,67864.0,0.003654]
[1729229396037,0.55354084,67865.0,67864.0,0.003654]
[1729229396463,0.45693712,67865.0,67864.0,0.003654]
[1729229396673,0.55352577,67865.0,67864.0,0.003654]
[1729229396806,0.64169268,67865.0,67864.0,0.003654]
[1729229397648,0.55352577,67865.0,67864.0,0.003654]
[1729229397851,0.55351397,67865.0,67864.0,0.003654]
[1729229398416,0.55349281,67865.0,67864.0,0.003654]
[1729229398643,0.39079909,67865.0,67864.0,0.003654]
[1729229399334,0.44590308,67865.0,67864.0,0.002654]
[1729229399544,0.37979909,67865.0,67864.0,0.002654]
[1729229399769,0.43790308,67865.0,67864.0,0.001654]
[1729229399990,0.43790308,67865.0,67864.0,0.002654]
[1729229399991,0.42386474,67865.0,67864.0,0.002654]
[1729229400439,0.37979909,67865.0,67864.0,0.002654]
[1729229400673,0.44590308,67865.0,67864.0,0.002654]
[1729229400902,0.28440308,67865.0,67864.0,0.002654]
[1729229401358,0.27340308,67865.0,67864.0,0.002654]
[1729229401582,0.27339244,67865.0,67864.0,0.002654]
[1729229401813,0.28339244,67865.0,67864.0,0.002654]
[1729229402008,0.21728845,67865.0,67864.0,0.002654]
[1729229402665,0.20728845,67865.0,67864.0,0.002654]
[1729229402886,0.21728845,67865.0,67864.0,0.002654]
[1729229403608,0.28339244,67865.0,67864.0,0.002654]
[1729229403822,0.27340108,67865.0,67864.0,0.002654]
[1729229404049,0.21728845,67865.0,67864.0,0.002654]
[1729229404491,0.28340108,67865.0,67864.0,0.002654]
[1729229405848,0.09901337,67865.0,67864.0,0.150007]
[1729229406079,0.03287801,67865.0,67864.0,0.246607]
[1729229408839,0.03287801,67865.0,67864.0,0.099254]
[1729229409067,0.03287801,67865.0,67864.0,0.002654]
[1729229409986,0.07697131,67865.0,67864.0,0.002654]
[1729229410224,0.03287801,67865.0,67864.0,0.002654]
[1729229411134,0.03287801,67865.0,67864.0,0.150007]
[1729229411352,0.07782646,67865.0,67864.0,0.150007]
[1729229411567,0.03370501,67865.0,67864.0,0.150007]
[1729229412475,0.09984496,67865.0,67864.0,0.002654]
[1729229413434,0.09984496,67865.0,67864.0,0.150007]
[1729229415958,0.09984496,67865.0,67864.0,0.002654]
[1729229416664,0.09984496,67865.0,67864.0,0.150007]
[1729229416876,0.09984496,67865.0,67864.0,0.002654]
[1729229417310,0.34899551,67865.0,67864.0,0.002654]
[1729229417547,0.37105604,67865.0,67864.0,0.002654]
[1729229417768,0.45924264,67865.0,67864.0,0.002654]
[1729229418239,0.45941068,67865.0,67864.0,0.002654]
[1729229419649,0.37110378,67865.0,67864.0,0.002654]
[1729229422812,0.37115092,67865.0,67864.0,0.002654]
[1729229423482,0.48156647,67865.0,67864.0,0.002654]
[1729229427652,0.48165052,67865.0,67864.0,0.002654]
[1729229429679,0.22385003,67865.0,67864.0,0.002654]
[1729229430847,0.22385003,67865.0,67864.0,0.02330894]
[1729229431069,0.22385003,67865.0,67864.0,0.17066194]
[1729229431298,0.22385003,67865.0,67864.0,0.02330894]
[1729229431977,0.18800344,67865.0,67864.0,0.02330894]
[1729229432224,0.22393856,67865.0,67864.0,0.17066194]
[1729229432461,0.218983,67865.0,67864.0,0.17066194]
[1729229432683,0.218983,67865.0,67864.0,0.26546194]
[1729229432684,0.07793209,67865.0,67864.0,0.26546194]
[1729229432917,0.10004464,67865.0,67864.0,0.34836194]
[1729229433142,0.03373906,67865.0,67864.0,0.34836194]
[1729229433896,0.07793072,67865.0,67864.0,0.34836194]
[1729229435490,0.03373906,67865.0,67864.0,0.34836194]
[1729229435708,0.10002861,67865.0,67864.0,0.34836194]
[1729229435928,0.19688974,67865.0,67864.0,0.34836194]
[1729229436151,0.1968895,67865.0,67864.0,0.34836194]
[1729229436374,0.27613413,67865.0,67864.0,0.34836194]
[1729229437269,0.27613838,67865.0,67864.0,0.34836194]
[1729229437955,0.27613697,67865.0,67864.0,0.34836194]
[1729229438191,0.27613691,67865.0,67864.0,0.34836194]
[1729229438904,0.20983906,67865.0,67864.0,0.34836194]
[1729229439622,0.27613691,67865.0,67864.0,0.34836194]
[1729229439843,0.27613307,67865.0,67864.0,0.34836194]
[1729229440064,0.26231187,67865.0,67864.0,0.34836194]
[1729229440296,0.27612451,67865.0,67864.0,0.34836194]
[1729229440535,0.2098305,67865.0,67864.0,0.34836194]
[1729229440752,0.48347734,67865.0,67864.0,0.34836194]
[1729229440972,0.27612415,67865.0,67864.0,0.34836194]
[1729229441687,0.37297543,67865.0,67864.0,0.34836194]
[1729229441921,0.27612395,67865.0,67864.0,0.34836194]
[1729229442371,0.2982296,67865.0,67864.0,0.26546194]
[1729229442559,0.48347673,67865.0,67864.0,0.26546194]
[1729229443504,0.39507763,67865.0,67864.0,0.02330894]
[1729229443734,0.5055765,67865.0,67864.0,0.02330894]
[1729229444189,0.46966476,67865.0,67864.0,0.002654]
[1729229444428,0.5055756,67865.0,67864.0,0.002654]
[1729229444663,0.50558142,67865.0,67864.0,0.002654]
[1729229444886,0.39507673,67865.0,67864.0,0.002654]
[1729229446254,0.39507673,67865.0,67864.0,0.02330767]
[1729229446713,0.39506977,67865.0,67864.0,0.02330767]
[1729229447358,0.39506977,67865.0,67864.0,0.17066067]
[1729229447839,0.50555303,67865.0,67864.0,0.17066067]
[1729229448523,0.39505276,67865.0,67864.0,0.17066067]
[1729229452060,0.35915893,67865.0,67864.0,0.17066067]
[1729229452288,0.39505722,67865.0,67864.0,0.17066067]
[1729229454289,0.39505722,67865.0,67864.0,0.02330767]
[1729229456672,0.39505722,67865.0,67864.0,0.17066067]
[1729229457534,0.39505722,67865.0,67864.0,0.02330767]
[1729229458018,0.39505722,67865.0,67864.0,0.002654]
[1729229458245,0.63770822,67865.0,67864.0,0.002654]
[1729229458466,0.75279998,67865.0,67864.0,0.002654]
[1729229458688,0.63770822,67865.0,67864.0,0.002654]
[1729229460235,0.60180993,67865.0,67864.0,0.002654]
[1729229460458,0.63771375,67865.0,67864.0,0.002654]
[1729229460670,0.54741631,67865.0,67864.0,0.002654]
[1729229462900,0.54741917,67865.0,67864.0,0.002654]
[1729229464314,0.5474326,67865.0,67864.0,0.002654]
[1729229468318,0.5474326,67865.0,67864.0,0.02332001]
[1729229468558,0.5474326,67865.0,67864.0,0.002654]
[1729229474294,0.3950816,67865.0,67864.0,0.002654]
[1729229474736,0.3950816,67865.0,67864.0,0.02331736]
[1729229474929,0.5424326,67865.0,67864.0,0.002654]
[1729229475170,0.5424326,67865.0,67864.0,0.02331736]
[1729229475395,0.3950816,67865.0,67864.0,0.002654]
[1729229475648,0.3950816,67865.0,67864.0,0.45886148]
[1729229475875,0.20873726,67865.0,67864.0,0.60782063]
[1729229476098,0.194927,67865.0,67864.0,0.63082063]
[1729229476757,0.184927,67865.0,67864.0,0.63082063]
[1729229477420,0.176927,67865.0,67864.0,0.62982063]
[1729229477634,0.176927,67865.0,67864.0,0.63182063]
[1729229477853,0.177927,67865.0,67864.0,0.64382063]
[1729229478094,0.177927,67865.0,67864.0,0.64182063]
[1729229479469,0.178927,67865.0,67864.0,0.64682063]
[1729229483688,0.178927,67865.0,67864.0,0.76191239]
[1729229484379,0.178927,67865.0,67864.0,0.76582153]
[1729229488783,0.178927,67865.0,67864.0,0.86582153]
[1729229489029,0.178927,67865.0,67864.0,0.87582153]
[1729229489513,0.178927,67865.0,67864.0,0.86582153]
[1729229489970,0.178927,67865.0,67864.0,0.87582153]
[1729229493338,0.178927,67865.0,67864.0,0.76072977]
[1729229494454,0.178927,67865.0,67864.0,0.75072977]
[1729229494683,0.178927,67865.0,67864.0,0.75682063]
[1729229494912,0.178927,67865.0,67864.0,0.76072977]
[1729229495132,0.178927,67865.0,67864.0,0.75682063]
[1729229495353,0.178927,67865.0,67864.0,0.75182063]
[1729229495793,0.178927,67865.0,67864.0,0.63672887]
[1729229496018,0.178927,67865.0,67864.0,0.75182063]
[1729229496701,0.178927,67865.0,67864.0,0.86691239]
[1729229496945,0.178927,67865.0,67864.0,0.87082153]
[1729229497208,0.178927,67865.0,67864.0,0.87582153]
[1729229498156,0.178927,67865.0,67864.0,0.76072977]
[1729229501147,0.178927,67865.0,67864.0,0.87582153]
[1729229501824,0.178927,67865.0,67864.0,0.76072977]
[1729229503145,0.178927,67865.0,67864.0,0.63672887]
[1729229503367,0.178927,67865.0,67864.0,0.75182063]
[1729229504779,0.178927,67865.0,67864.0,0.86691239]
[1729229506354,0.178927,67865.0,67864.0,0.75182063]
[1729229510759,0.178927,67865.0,67864.0,0.79778534]
[1729229512820,0.178927,67865.0,67864.0,0.9128771]
[1729229513026,0.178927,67865.0,67864.0,0.9148771]
[1729229513479,0.178927,67865.0,67864.0,0.9128771]
[1729229513686,0.178927,67865.0,67864.0,0.91277842]
[1729229514963,0.178927,67865.0,67864.0,0.91477842]
[1729229515380,0.178927,67865.0,67864.0,0.91277842]
[1729229517154,0.178927,67865.0,67864.0,0.92368756]
[1729229517376,0.178927,67865.0,67864.0,0.92168756]
[1729229517607,0.000827,67870.0,67869.0,0.44695114]
[1729229517807,0.000827,67870.0,67869.0,0.84669095]
[1729229519091,0.001827,67870.0,67869.0,0.84669095]